bitfinex/quotes_SOLUSD_20250930
["timestamp","ask_amount","ask_price","bid_price","bid_amount"]
[1759229141549,1.43657284,207.02,206.98,21.49]
[1759229141764,1.43657284,207.03,206.99,0.69]
[1759229142762,18.42561244,207.04,206.99,0.69]
[1759229143063,1.43657284,207.03,206.99,0.69]
[1759229143239,1.43657284,207.03,206.99,5.52106912]
[1759229143440,1.43657284,207.03,206.99,4.83106912]
[1759229143943,1.43657284,207.03,207.0,0.66]
[1759229144270,19.86216825,207.04,207.0,0.66]
[1759229144467,15.03216685,207.04,207.0,0.66]
[1759229144771,15.03216685,207.04,207.0,5.49075638]
[1759229144975,15.03216685,207.05,207.01,0.66]
[1759229145182,13.59559401,207.05,207.02,0.66]
[1759229145475,13.59559401,207.07,207.03,0.66]
[1759229145682,13.59559401,207.07,207.01,12.07779231]
[1759229145877,13.59559401,207.07,207.03,0.66]
[1759229146178,13.59559401,207.07,207.01,12.07779231]
[1759229146358,13.59559401,207.07,207.04,0.66]
[1759229147278,15.03216685,207.09,207.05,0.66]
[1759229148161,19.86099863,207.09,207.04,4.82990875]
[1759229148370,20.66729706,207.09,207.04,0.66]
[1759229149170,13.59559401,207.07,207.04,0.66]
[1759229150554,13.59559401,207.07,207.04,5.48990135]
[1759229150973,20.94729706,207.09,207.04,5.48990135]
[1759229152962,20.94729706,207.09,207.05,0.66]
[1759229152963,20.66729706,207.09,207.05,0.66]
[1759229154187,20.94729706,207.09,207.04,4.82987123]
[1759229154372,15.83846528,207.09,207.05,0.66]
[1759229154685,15.83846528,207.09,207.06,0.66]
[1759229154877,15.83846528,207.09,207.04,5.48987123]
[1759229155177,38.58863773,207.1,207.04,5.48987123]
[1759229155178,13.59559401,207.1,207.05,0.66]
[1759229155368,16.11846528,207.1,207.05,0.66]
[1759229155571,16.11846528,207.1,207.04,19.35666105]
[1759229155770,15.83846528,207.1,207.05,0.66]
[1759229155976,15.83846528,207.1,207.06,5.48951801]
[1759229157884,15.83846528,207.1,207.06,4.82951801]
[1759229158071,16.11846528,207.1,207.05,4.82975126]
[1759229158277,16.11846528,207.1,207.05,5.48975126]
[1759229158667,20.94710208,207.1,207.04,14.52678982]
[1759229158867,13.59559401,207.07,207.02,26.29040618]
[1759229159176,13.59559401,207.07,207.03,0.66]
[1759229159380,0.28,207.09,207.04,0.66]
[1759229159578,13.59559401,207.08,207.04,0.66]
[1759229159888,2.52287127,207.08,207.04,0.66]
[1759229160088,13.59559401,207.07,207.04,0.66]
[1759229160991,13.59559401,207.07,207.04,5.4899055]
[1759229161791,7.07194664,207.08,207.04,0.66]
[1759229161994,7.35194664,207.08,207.04,0.66]
[1759229162287,15.83846528,207.08,207.05,0.66]
[1759229162486,0.28,207.1,207.05,0.66]
[1759229162698,2.24287127,207.1,207.06,0.66]
[1759229162891,13.59559401,207.09,207.06,0.66]
[1759229163071,13.59559401,207.1,207.06,0.66]
[1759229163267,13.59559401,207.1,207.04,16.9054495]
[1759229163475,13.59559401,207.1,207.06,0.66]
[1759229164091,20.94709057,207.1,207.05,4.82957869]
[1759229164276,2.24287127,207.08,207.04,4.82994439]
[1759229164793,2.52287127,207.08,207.03,17.5656941]
[1759229164976,2.24287127,207.08,207.04,0.66]
[1759229165176,2.24287127,207.09,207.04,0.66]
[1759229165689,7.07173998,207.09,207.04,0.66]
[1759229165894,7.07173998,207.09,207.05,0.66]
[1759229166289,13.59559401,207.07,207.03,18.2256941]
[1759229166493,13.59559401,207.07,207.03,4.83016537]
[1759229166800,13.59559401,207.07,207.04,0.66]
[1759229167467,13.59559401,207.07,207.04,5.4899584]
[1759229167670,13.59559401,207.07,207.05,0.66]
[1759229168102,2.24287127,207.1,207.04,4.8299584]
[1759229168288,2.24287127,207.1,207.06,0.66]
[1759229168494,2.24287127,207.1,207.07,0.66]
[1759229169307,20.66685247,207.11,207.07,0.66]
[1759229169598,20.66685247,207.11,207.08,0.66]
[1759229169773,20.66685247,207.11,207.06,5.4894526]
[1759229169973,20.66685247,207.11,207.07,0.66]
[1759229172381,20.94685247,207.11,207.07,0.66]
[1759229172603,20.66685247,207.11,207.07,0.66]
[1759229173276,13.59559401,207.09,207.04,4.82975348]
[1759229173497,13.59559401,207.09,207.06,0.68]
[1759229173681,13.59559401,207.09,207.07,0.68]
[1759229174083,13.59559401,207.11,207.07,0.68]
[1759229174397,15.83846528,207.11,207.08,0.68]
[1759229174806,15.83846528,207.11,207.07,4.82924638]
[1759229175009,15.83846528,207.11,207.07,5.50924638]
[1759229175406,20.66687222,207.11,207.07,0.68]
[1759229175619,20.94687222,207.11,207.07,0.68]
[1759229176614,20.66687222,207.11,207.07,0.68]
[1759229179011,13.59559401,207.09,207.06,0.71]
[1759229179408,13.59559401,207.09,207.04,16.9049459]
[1759229179597,13.59559401,207.09,207.06,0.71]
[1759229180112,2.24287127,207.09,207.04,5.53998454]
[1759229180424,15.83846528,207.1,207.05,0.71]
[1759229180615,15.83846528,207.1,207.06,0.71]
[1759229180998,15.83846528,207.1,207.06,5.5395051]
[1759229181310,13.59559401,207.1,207.07,0.71]
[1759229182417,20.66709154,207.1,207.05,0.71]
[1759229182590,2.24287127,207.09,207.06,0.71]
[1759229185211,20.66709154,207.1,207.06,0.71]
[1759229185600,18.42422027,207.1,207.06,5.53947441]
[1759229185917,20.66709154,207.1,207.06,4.82947441]
[1759229186107,20.66709154,207.1,207.06,5.53947441]
[1759229186483,18.42422027,207.1,207.06,5.53947441]
[1759229186688,13.59559401,207.11,207.07,0.71]
[1759229187792,13.59559401,207.11,207.08,4.82905157]
[1759229187992,13.59559401,207.11,207.09,0.71]
[1759229188208,13.59559401,207.11,207.1,0.71]
[1759229188802,13.59559401,207.13,207.1,0.71]
[1759229189093,13.59559401,207.13,207.11,0.71]
[1759229189811,13.59559401,207.13,207.02,54.54]
[1759229189812,13.59559401,207.11,206.99,4.83115126]
[1759229189991,2.24287127,207.09,207.06,20.8]
[1759229190397,2.24287127,207.09,207.06,21.51]
[1759229190597,13.59559401,207.09,207.06,0.71]
[1759229190812,13.59559401,207.09,207.07,0.71]
[1759229191012,13.59559401,207.09,207.07,5.53925464]
[1759229191212,13.59559401,207.11,207.08,0.71]
[1759229191592,13.59559401,207.11,207.09,0.71]
[1759229192215,13.59559401,207.11,207.1,0.71]
[1759229192418,13.59559401,207.12,207.1,0.71]
[1759229194335,2.52287127,207.11,207.05,0.71]
[1759229194625,2.24287127,207.09,207.05,0.71]
[1759229194829,2.24287127,207.09,207.06,0.71]
[1759229195210,13.59559401,207.09,207.06,0.71]
[1759229195411,13.59559401,207.09,207.04,4.82998454]
[1759229195412,15.83846528,207.09,207.04,26.33998454]
[1759229195743,2.24287127,207.07,207.01,4.83048931]
[1759229196052,2.24287127,207.04,207.0,15.23749328]
[1759229196339,15.83846528,207.04,207.01,0.71]
[1759229196699,13.59559401,207.04,207.01,0.71]
[1759229196903,15.83846528,207.04,207.01,0.71]
[1759229197116,13.59559401,207.04,207.01,0.71]
[1759229197423,2.24287127,207.04,207.01,0.71]
[1759229198332,2.24287127,207.04,207.02,0.71]
[1759229198634,16.11846528,207.03,206.98,14.5289004]
[1759229198820,13.59559401,207.01,206.98,15.2389004]
[1759229199155,13.59559401,207.01,206.98,0.71]
[1759229199352,13.59559401,207.03,206.98,0.71]
[1759229199641,13.59559401,207.01,206.99,0.71]
[1759229200341,13.59559401,207.03,207.0,0.71]
[1759229200950,15.83846528,207.05,207.01,0.71]
[1759229202342,13.59559401,207.05,207.01,0.71]
[1759229202640,13.59559401,207.05,207.02,0.66]
[1759229203716,15.83846528,207.05,207.02,0.66]
[1759229204525,13.59559401,207.05,207.02,0.66]
[1759229204726,15.83846528,207.05,207.02,0.66]
[1759229205543,15.83846528,207.05,206.99,4.83115126]
[1759229205845,13.59559401,207.05,207.03,0.66]
[1759229206019,13.59559401,207.05,206.99,16.90902941]
[1759229206020,13.59559401,207.05,207.01,0.66]
[1759229206347,13.59559401,207.05,207.02,0.66]
[1759229206723,13.59559401,207.05,207.02,5.49039123]
[1759229207035,13.59559401,207.06,207.03,0.66]
[1759229207232,13.59559401,207.06,207.04,0.66]
[1759229208434,13.59559401,207.06,207.05,4.82975126]
[1759229208635,13.59559401,207.06,207.05,5.48975126]
[1759229209230,80.3,207.09,207.05,5.48975126]
[1759229209433,13.59559401,207.08,207.05,5.48975126]
[1759229209729,13.59559401,207.08,207.06,0.66]
[1759229210549,13.59559401,207.08,207.07,4.82928478]
[1759229210730,13.59559401,207.08,207.07,5.48928478]
[1759229211732,80.3,207.09,207.07,5.48928478]
[1759229211934,0.28,207.14,207.07,5.48928478]
[1759229211935,13.59559401,207.12,207.07,5.48928478]
[1759229212150,5.10784106,207.14,207.07,5.48928478]
[1759229212151,13.59559401,207.13,207.08,0.66]
[1759229212347,13.59559401,207.13,207.09,0.66]
[1759229212548,0.28,207.13,207.1,4.82858522]
[1759229212737,13.87559401,207.14,207.1,4.82858522]
[1759229212935,13.59559401,207.14,207.08,4.8288607]
[1759229213153,0.28,207.13,207.08,5.4888607]
[1759229213453,1.43521345,207.12,207.08,0.66]
[1759229213652,1.43521345,207.12,207.07,0.66]
[1759229213830,0.28,207.11,207.06,14.52397666]
[1759229214030,13.59559401,207.1,207.06,0.66]
[1759229214456,13.59559401,207.1,207.07,0.66]
[1759229215153,0.28,207.12,207.07,0.66]
[1759229215454,13.59559401,207.1,207.07,0.66]
[1759229216243,13.59559401,207.11,207.07,5.48927259]
[1759229216443,15.03080746,207.11,207.07,5.48927259]
[1759229216953,13.59559401,207.11,207.07,5.48927259]
[1759229217157,13.59559401,207.11,207.07,4.82927259]
[1759229217340,13.59559401,207.11,207.05,13.59559401]
[1759229217341,15.03080746,207.11,207.05,13.59559401]
[1759229217546,1.43521345,207.06,207.01,0.66]
[1759229217739,13.59559401,207.04,207.01,0.66]
[1759229218052,13.59559401,207.02,206.99,0.66]
[1759229218251,13.59559401,207.02,206.97,13.59559401]
[1759229218466,13.59559401,207.0,206.95,5.49204659]
[1759229218640,13.59559401,207.0,206.96,0.66]
[1759229219041,13.59559401,207.0,206.97,0.66]
[1759229219434,13.59559401,207.0,206.98,0.66]
[1759229219733,13.59559401,207.02,206.99,0.66]
[1759229220241,13.59559401,207.02,206.97,5.49148566]
[1759229220460,13.59559401,207.02,206.98,0.66]
[1759229221356,13.59559401,207.02,206.98,5.49131825]
[1759229221857,13.59559401,207.02,206.99,0.66]
[1759229223040,13.87559401,207.02,206.97,5.49159351]
[1759229223245,13.59559401,207.02,206.97,5.49159351]
[1759229223541,13.59559401,207.02,206.98,0.66]
[1759229223741,15.03080746,207.02,206.98,0.66]
[1759229223951,13.59559401,207.02,206.98,0.66]
[1759229224542,21.08,207.1,206.99,0.66]
[1759229224747,13.59559401,207.07,206.99,0.66]
[1759229224943,13.59559401,207.07,207.0,16.90821255]
[1759229225164,13.59559401,207.07,207.01,0.66]
[1759229226359,13.59559401,207.07,207.01,34.48]
[1759229226666,13.59559401,207.07,207.02,0.66]
[1759229226845,13.59559401,207.07,207.03,4.83021784]
[1759229227039,15.03080746,207.08,207.01,4.8306845]
[1759229227237,1.43521345,207.07,207.02,0.66]
[1759229228366,1.71521345,207.07,207.02,0.66]
[1759229228568,6.54453421,207.07,207.02,5.49044044]
[1759229229267,6.26430105,207.08,207.03,0.66]
[1759229229440,13.87559401,207.09,207.03,0.66]
[1759229229638,13.87559401,207.09,207.04,0.66]
[1759229229850,1.43521345,207.08,207.04,0.66]
[1759229230277,81.73521345,207.08,207.04,0.66]
[1759229230651,86.56429046,207.08,207.04,0.66]
[1759229231444,13.59559401,207.07,207.04,5.48989967]
[1759229232566,13.59559401,207.07,207.01,33.8]
[1759229232567,13.59559401,207.07,207.02,4.83045116]
[1759229232868,13.59559401,207.07,207.03,0.67]
[1759229234169,13.59559401,207.07,207.04,4.82998454]
[1759229234672,13.59559401,207.07,207.05,0.67]
[1759229234846,13.59559401,207.07,207.04,4.82998454]
[1759229235249,0.28,207.12,207.05,0.67]
[1759229235447,4.82648776,207.19,207.05,0.67]
[1759229235448,1.43521345,207.1,207.05,33.78]
[1759229235647,1.43521345,207.08,207.05,33.78]
[1759229235859,1.43521345,207.07,207.03,33.8]
[1759229236048,1.71521345,207.07,207.02,34.47]
[1759229236249,13.59559401,207.05,207.02,38.63031688]
[1759229236459,13.59559401,207.05,207.03,0.67]
[1759229236678,13.59559401,207.06,207.03,0.67]
[1759229237164,13.59559401,207.06,207.04,0.7]
[1759229237860,13.59559401,207.08,207.05,0.7]
[1759229238061,13.59559401,207.08,207.06,0.7]
[1759229238250,13.59559401,207.08,207.06,5.52950104]
[1759229239372,13.59559401,207.09,207.06,5.52950104]
[1759229239672,15.03080746,207.11,207.06,5.52950104]
[1759229239869,15.31080746,207.11,207.06,5.52950104]
[1759229240069,13.87559401,207.11,207.06,5.52950104]
[1759229240452,13.59559401,207.11,207.06,5.52950104]
[1759229240654,15.31080746,207.11,207.06,5.52950104]
[1759229241266,15.03080746,207.11,207.07,0.7]
[1759229241660,15.03080746,207.11,207.07,5.52927019]
[1759229242074,13.59559401,207.11,207.07,4.82927019]
[1759229242278,0.28,207.13,207.07,5.52927019]
[1759229242481,1.71521345,207.13,207.07,5.52927019]
[1759229242968,0.28,207.13,207.07,5.52927019]
[1759229243285,13.59559401,207.11,207.07,5.52927019]
[1759229245075,15.03080746,207.11,207.07,5.52927019]
[1759229245270,15.03080746,207.11,207.07,4.82927019]
[1759229245456,15.03080746,207.11,207.07,5.52927019]
[1759229245824,15.03080746,207.11,207.08,0.7]
[1759229245958,13.59559401,207.11,207.08,0.7]
[1759229247687,13.59559401,207.11,207.08,5.52903703]
[1759229248058,13.59559401,207.11,207.09,0.7]
[1759229248280,13.59559401,207.11,207.1,0.7]
[1759229249894,13.59559401,207.11,207.08,4.82903703]
[1759229250099,13.59559401,207.11,207.09,0.7]
[1759229250393,13.59559401,207.11,207.1,0.7]
[1759229251904,13.59559401,207.12,207.1,0.7]
[1759229252198,13.59559401,207.12,207.09,4.82881435]
[1759229252495,15.03080746,207.12,207.09,5.52881435]
[1759229252796,15.03080746,207.12,207.1,0.7]
[1759229253332,15.03080746,207.12,207.08,0.7]
[1759229253473,15.03080746,207.12,207.09,0.7]
[1759229253793,15.03080746,207.12,207.07,38.60923154]
[1759229253979,15.03080746,207.12,207.09,0.7]
[1759229254176,15.03080746,207.12,207.1,0.7]
[1759229255603,13.59559401,207.14,207.11,0.7]
[1759229255904,13.59559401,207.14,207.1,0.7]
[1759229255905,1.43521345,207.12,207.1,0.7]
[1759229257579,85.12789026,207.13,207.1,0.7]
[1759229257779,1.43521345,207.12,207.1,0.7]
[1759229257993,80.3,207.13,207.1,0.7]
[1759229258204,1.43521345,207.12,207.1,0.7]
[1759229258379,1.43521345,207.12,207.08,4.82895363]
[1759229258580,1.43521345,207.12,207.09,0.7]
[1759229258779,1.43521345,207.12,207.1,0.7]
[1759229261405,1.43521345,207.12,207.07,38.60927254]
[1759229261704,1.43521345,207.12,207.1,0.7]
[1759229262085,85.12791035,207.13,207.08,4.82904019]
[1759229262282,15.03080746,207.11,207.08,0.69]
[1759229262598,1.43521345,207.09,207.08,0.69]
[1759229263595,1.43521345,207.1,207.08,0.69]
[1759229264305,1.43521345,207.1,207.08,5.51891552]
[1759229264499,1.43521345,207.1,207.09,0.69]
[1759229266797,1.43521345,207.1,207.07,33.74]
[1759229266996,1.43521345,207.09,207.07,0.69]
[1759229267206,1.43521345,207.09,207.06,33.74]
[1759229267501,1.43521345,207.09,207.06,34.43]
[1759229268217,1.43521345,207.09,207.06,33.74]
[1759229268424,1.43521345,207.09,207.07,0.69]
[1759229270415,2.24283965,207.08,207.07,0.69]
[1759229270792,2.24283965,207.08,207.06,34.43]
[1759229271412,15.83843366,207.08,207.07,0.69]
[1759229271614,2.24283965,207.1,207.07,0.69]
[1759229272409,2.24283965,207.1,207.07,5.51923211]
[1759229272610,2.24283965,207.1,207.08,0.69]
[1759229272813,15.83843366,207.1,207.06,33.74]
[1759229273000,15.83843366,207.09,207.06,33.74]
[1759229273198,15.83843366,207.09,207.07,0.69]
[1759229273698,15.83843366,207.09,207.08,0.69]
[1759229274017,15.83843366,207.09,207.07,34.43]
[1759229274403,15.83843366,207.09,207.07,33.74]
[1759229274607,15.83843366,207.09,207.07,34.43]
[1759229275223,18.42441493,207.09,207.05,0.69]
[1759229275524,2.24283965,207.08,207.06,34.43]
[1759229275727,2.24283965,207.08,207.06,0.69]
[1759229275906,2.24283965,207.07,207.05,33.74]
[1759229276105,2.24283965,207.07,207.05,34.43]
[1759229276331,2.24283965,207.07,207.06,0.69]
[1759229276626,4.82882092,207.09,207.06,0.69]
[1759229276819,2.24283965,207.07,207.06,0.69]
[1759229278113,2.24283965,207.07,207.05,33.74]
[1759229278424,2.24283965,207.07,207.05,34.43]
[1759229279317,2.24283965,207.07,207.06,0.69]
[1759229279816,2.24283965,207.07,207.03,4.8301489]
[1759229280000,2.24283965,207.07,207.04,34.43]
[1759229280208,2.24283965,207.07,207.05,0.69]
[1759229280406,2.24283965,207.07,207.06,0.69]
[1759229281106,2.24283965,207.07,207.04,39.25995974]
[1759229281306,2.24283965,207.07,207.05,0.69]
[1759229281824,7.0721247,207.07,207.04,33.74]
[1759229282151,7.0721247,207.07,207.04,0.69]
[1759229282435,2.24283965,207.07,207.04,0.69]
[1759229282612,2.24283965,207.07,207.03,33.74]
[1759229282813,2.24283965,207.07,207.04,0.69]
[1759229283129,2.24283965,207.07,207.05,0.69]
[1759229283366,7.07214531,207.07,207.03,33.74]
[1759229283507,7.07214531,207.07,207.05,0.69]
[1759229283917,7.07214531,207.07,206.98,20.8]
[1759229284121,2.24283965,207.04,207.01,0.69]
[1759229284323,80.3,207.06,207.01,0.69]
[1759229284620,80.3,207.06,207.02,33.74]
[1759229284799,80.3,207.06,207.03,0.69]
[1759229284996,2.24283965,207.1,207.04,16.9049459]
[1759229285222,2.24283965,207.1,207.05,0.69]
[1759229285430,2.24283965,207.1,207.06,33.74]
[1759229285600,2.24283965,207.1,207.07,0.69]
[1759229286001,13.59559401,207.12,207.07,0.69]
[1759229286200,2.24283965,207.11,207.07,0.69]
[1759229287005,2.24283965,207.11,207.08,4.82905157]
[1759229287303,37.91576437,207.16,207.08,4.82905157]
[1759229287304,13.59559401,207.15,207.09,0.69]
[1759229287522,13.59559401,207.13,207.09,0.69]
[1759229288329,13.59559401,207.13,207.1,4.82858522]
[1759229288509,13.59559401,207.13,207.11,0.69]
[1759229289024,2.24283965,207.13,207.11,0.69]
[1759229290847,13.59559401,207.14,207.07,4.82928478]
[1759229291130,2.24283965,207.12,207.07,4.82928478]
[1759229291314,2.24283965,207.12,207.08,34.43]
[1759229291515,2.24283965,207.12,207.09,0.69]
[1759229291916,2.24283965,207.12,207.1,4.82858522]
[1759229292110,2.24283965,207.12,207.11,0.69]
[1759229292609,2.24283965,207.13,207.11,0.69]
[1759229292817,2.24283965,207.13,207.12,0.69]
[1759229293607,2.24283965,207.13,207.1,5.51858522]
[1759229293924,2.24283965,207.13,207.11,0.69]
[1759229295520,2.24283965,207.13,207.11,5.51824332]
[1759229297116,13.59559401,207.14,207.11,5.51824332]
[1759229297325,2.24283965,207.13,207.11,5.51824332]
[1759229297729,2.24283965,207.12,207.09,0.7]
[1759229297912,18.42333539,207.14,207.1,0.7]
[1759229298113,2.24283965,207.12,207.1,0.7]
[1759229298319,13.59559401,207.14,207.11,0.7]
[1759229298608,2.24283965,207.12,207.08,38.56881907]
[1759229299125,2.24283965,207.12,207.09,0.7]
[1759229299528,2.24283965,207.12,207.08,33.74]
[1759229299736,2.24283965,207.09,207.04,5.52997474]
[1759229299913,13.87559401,207.11,207.04,5.52997474]
[1759229299914,2.24283965,207.07,207.05,0.7]
[1759229300229,2.24283965,207.06,207.05,0.7]
[1759229300413,2.24283965,207.06,207.03,4.830194]
[1759229300613,2.24283965,207.06,207.04,0.7]
[1759229301229,0.28,207.06,207.01,0.7]
[1759229301428,2.24283965,207.03,207.02,0.7]
[1759229301630,2.24283965,207.04,207.02,0.7]
[1759229301814,2.24283965,207.05,207.02,5.53036782]
[1759229302013,2.24283965,207.05,207.03,0.7]
[1759229302217,2.24283965,207.05,207.04,0.7]
[1759229302615,2.24283965,207.05,207.02,5.53036782]
[1759229302812,2.24283965,207.05,207.03,0.7]
[1759229303012,2.24283965,207.05,207.04,0.7]
[1759229303732,20.8,207.08,207.04,0.7]
[1759229303928,2.24283965,207.06,207.04,0.7]
[1759229304331,2.24283965,207.06,207.04,5.52998454]
[1759229304639,2.24283965,207.06,207.05,0.7]
[1759229309340,99.00430391,207.1,207.05,0.7]
[1759229309543,2.24283965,207.06,207.05,0.7]
[1759229310321,2.24283965,207.06,207.01,4.8306845]
[1759229310530,2.24283965,207.02,207.0,0.7]
[1759229310743,13.59559401,207.06,206.97,12.07881899]
[1759229310744,2.24283965,207.01,206.97,12.07881899]
[1759229311214,2.24283965,207.02,206.98,0.7]
[1759229311419,18.42514836,207.06,206.99,4.83115126]
[1759229311632,2.24283965,207.02,207.0,0.7]
[1759229311839,2.24283965,207.02,207.01,0.7]
[1759229313939,2.24283965,207.02,207.01,5.5306845]
[1759229314335,2.24283965,207.02,207.01,0.7]
[1759229319636,2.24283965,207.02,206.98,4.83118171]
[1759229319833,2.24283965,207.02,206.99,0.7]
[1759229320059,2.24283965,207.02,207.0,0.7]
[1759229320232,2.24283965,207.01,206.98,4.83118171]
[1759229320436,2.24283965,207.0,206.98,4.83118171]
[1759229320647,2.24283965,207.0,206.99,0.7]
[1759229320883,2.24283965,207.01,206.99,0.7]
[1759229322540,2.24283965,207.01,206.99,4.83108989]
[1759229322739,15.83843366,207.01,207.0,0.68]
[1759229323144,13.59559401,207.01,207.0,0.68]
[1759229325143,13.59559401,207.01,206.99,5.51108989]
[1759229325343,13.59559401,207.01,207.0,0.68]
[1759229325754,15.83843366,207.01,207.0,0.68]
[1759229325946,15.83843366,207.01,206.99,4.83108989]
[1759229326158,15.83843366,207.01,207.0,0.68]
[1759229327559,15.83843366,207.01,206.97,16.91066337]
[1759229327738,2.24283965,207.0,206.99,4.83115126]
[1759229328164,2.24283965,207.0,206.99,5.51115126]
[1759229329362,13.59559401,207.01,206.99,5.51115126]
[1759229329665,2.24283965,207.0,206.99,5.51115126]
[1759229329965,15.83843366,207.01,206.99,5.51115126]
[1759229330155,80.3,207.04,207.0,0.68]
[1759229330374,13.59559401,207.03,206.99,16.90902941]
[1759229330564,15.83843366,207.03,207.01,0.68]
[1759229331346,15.83843366,207.03,207.01,5.51064634]
[1759229332266,15.03162037,207.03,207.01,5.51064634]
[1759229332560,15.03162037,207.03,207.01,0.68]
[1759229332758,1.43602636,207.02,207.0,0.68]
[1759229332966,1.43602636,207.01,206.98,5.5113828]
[1759229333259,1.43602636,207.0,206.98,5.5113828]
[1759229335259,1.43602636,207.0,206.98,4.8313828]
[1759229335645,1.43602636,207.0,206.98,5.5113828]
[1759229335942,18.70588303,207.03,206.98,5.5113828]
[1759229336159,1.43602636,207.0,206.99,0.68]
[1759229336342,1.43602636,207.0,206.97,5.5116181]
[1759229336542,1.43602636,207.0,206.98,0.68]
[1759229337146,1.43602636,207.0,206.98,5.51135305]
[1759229337347,1.43602636,207.0,206.98,4.83135305]
[1759229337663,1.43602636,207.0,206.99,0.68]
[1759229339850,1.43602636,207.0,206.97,4.8315911]
[1759229340173,1.43602636,207.0,206.98,0.68]
[1759229340565,1.43602636,207.0,206.99,0.68]
[1759229341462,1.43602636,207.01,206.99,0.68]
[1759229342163,1.43602636,207.0,206.98,0.68]
[1759229342372,1.43602636,207.01,206.99,0.68]
[1759229342677,15.03162037,207.01,207.0,0.68]
[1759229343576,15.03162037,207.01,206.96,16.91148047]
[1759229343768,15.03162037,207.01,206.97,0.68]
[1759229344073,15.03162037,207.01,206.98,4.83138467]
[1759229344288,15.03162037,207.01,206.99,0.68]
[1759229344447,15.03162037,207.01,207.0,0.68]
[1759229345276,15.03162037,207.01,206.98,0.68]
[1759229345457,15.03162037,207.01,206.99,0.68]
[1759229346869,15.03162037,207.01,206.99,5.51100468]
[1759229347577,15.03162037,207.01,207.0,0.68]
[1759229348076,13.59559401,207.01,207.0,5.51091787]
[1759229351668,80.3,207.04,207.0,5.51091787]
[1759229351873,13.59559401,207.06,207.01,0.68]
[1759229352064,13.59559401,207.04,207.01,0.68]
[1759229352474,13.59559401,207.04,207.02,4.83045116]
[1759229352674,13.59559401,207.04,207.03,0.72]
[1759229352859,13.59559401,207.04,207.02,5.55045116]
[1759229353190,15.03162037,207.04,207.02,5.55045116]
[1759229356777,15.03162037,207.04,207.03,0.67]
[1759229357162,15.03162037,207.04,207.02,0.67]
[1759229357762,15.03162037,207.04,207.02,5.50026251]
[1759229358274,13.59559401,207.04,207.03,0.67]
[1759229358582,15.03162037,207.04,207.02,5.50026251]
[1759229359075,80.3,207.07,207.02,4.83026251]
[1759229359283,13.59559401,207.04,207.03,0.67]
[1759229359766,13.59559401,207.04,207.03,5.50021784]
[1759229362489,15.03162037,207.04,207.03,5.50021784]
[1759229363097,1.43602636,207.04,207.03,5.50021784]
[1759229363273,1.43602636,207.05,207.03,5.50021784]
[1759229363475,15.03162037,207.05,207.04,0.67]
[1759229363791,15.03162037,207.05,207.03,4.83021784]
[1759229364097,15.03162037,207.05,207.03,5.50021784]
[1759229364796,13.59559401,207.05,207.03,5.50021784]
[1759229364992,13.59559401,207.05,207.04,0.67]
[1759229365180,13.59559401,207.05,207.01,12.07669379]
[1759229365376,13.59559401,207.05,207.02,0.67]
[1759229366193,13.59559401,207.07,207.03,16.90576244]
[1759229366494,13.59559401,207.07,207.04,0.67]
[1759229366666,13.59559401,207.09,207.04,0.67]
[1759229367972,13.59559401,207.1,207.04,0.67]
[1759229368171,13.59559401,207.12,207.05,16.90412942]
[1759229368411,13.59559401,207.12,207.06,0.67]
[1759229369283,20.8,207.15,207.06,0.67]
[1759229369284,34.0,207.15,207.06,0.67]
[1759229369481,13.59559401,207.13,207.06,0.67]
[1759229370093,13.59559401,207.13,207.06,34.39]
[1759229370300,13.59559401,207.13,207.07,17.57249673]
[1759229370474,13.59559401,207.13,207.08,0.67]
[1759229371502,13.59559401,207.13,207.09,4.82881838]
[1759229371802,13.59559401,207.13,207.1,0.67]
[1759229372171,13.59559401,207.16,207.1,0.67]
[1759229373511,13.59559401,207.16,207.11,4.82835208]
[1759229373702,13.59559401,207.16,207.12,0.67]
[1759229374288,13.59559401,207.16,207.11,4.82835208]